Workbook

Sheet Sheet1
A1: 镇远县2023年“特岗计划” 教师招聘综合成绩及拟入围体检人员名单
A2: 序号 | B2: 姓名 | C2: 面试 准考证号 | D2: 报考县 | E2: 学段 | F2: 学科 | G2: 笔试 成绩 | H2: 笔试成绩所占比例 | I2: 面试 成绩 | J2: 面试成绩所占比例 | K2: 考试总成绩 | L2: 本职位排名 | M2: 是否入围体检 | N2: 备注
A3: 1 | B3: 黎前莉 | C3: 2325020321A03 | D3: 镇远县 | E3: 小学 | F3: 英语 | G3: 62.5 | H3: 50% | I3: 79.67 | J3: 50% | K3: =G3*H3+I3*J3 -> 71.09 | L3: 1 | M3: 是
A4: 2 | B4: 邵贵玲 | C4: 2325020321A01 | D4: 镇远县 | E4: 小学 | F4: 英语 | G4: 67.5 | H4: 50% | I4: 73.67 | J4: 50% | K4: 70.59 | L4: 2
A5: 3 | B5: 杨胜英 | C5: 2325020321A02 | D5: 镇远县 | E5: 小学 | F5: 英语 | G5: 66 | H5: 50% | I5: 0 | J5: 50% | K5: 33.00 | L5: 3 | N5: 面试缺考
A6: 4 | B6: 陆显锋 | C6: 2325021035B39 | D6: 镇远县 | E6: 小学 | F6: 音乐 | G6: 73 | H6: 50% | I6: 83.04 | J6: 50% | K6: 78.02 | L6: 1 | M6: 是
A7: 5 | B7: 张文 | C7: 2325021035B40 | D7: 镇远县 | E7: 小学 | F7: 音乐 | G7: 72 | H7: 50% | I7: 82.09 | J7: 50% | K7: 77.05 | L7: 2 | M7: 是
A8: 6 | B8: 周艳 | C8: 2325021035B44 | D8: 镇远县 | E8: 小学 | F8: 音乐 | G8: 67 | H8: 50% | I8: 83.92 | J8: 50% | K8: 75.46 | L8: 3 | M8: 是
A9: 7 | B9: 苏卓林 | C9: 2325021035B41 | D9: 镇远县 | E9: 小学 | F9: 音乐 | G9: 71 | H9: 50% | I9: 79.9 | J9: 50% | K9: 75.45 | L9: 4 | M9: 是
A10: 8 | B10: 张小英 | C10: 2325021035B43 | D10: 镇远县 | E10: 小学 | F10: 音乐 | G10: 68 | H10: 50% | I10: 81.87 | J10: 50% | K10: 74.94 | L10: 5
A11: 9 | B11: 卢川 | C11: 2325021035B42 | D11: 镇远县 | E11: 小学 | F11: 音乐 | G11: 69 | H11: 50% | I11: 80.72 | J11: 50% | K11: 74.86 | L11: 6
A12: 10 | B12: 杨重 | C12: 2325021035B49 | D12: 镇远县 | E12: 小学 | F12: 音乐 | G12: 63 | H12: 50% | I12: 86.18 | J12: 50% | K12: 74.59 | L12: 7
A13: 11 | B13: 向会 | C13: 2325021035B48 | D13: 镇远县 | E13: 小学 | F13: 音乐 | G13: 64 | H13: 50% | I13: 82.32 | J13: 50% | K13: 73.16 | L13: 8
A14: 12 | B14: 龙倩 | C14: 2325021035B45 | D14: 镇远县 | E14: 小学 | F14: 音乐 | G14: 66.5 | H14: 50% | I14: 79.18 | J14: 50% | K14: 72.84 | L14: 9
A15: 13 | B15: 张宝丽 | C15: 2325021035B47 | D15: 镇远县 | E15: 小学 | F15: 音乐 | G15: 64 | H15: 50% | I15: 79.81 | J15: 50% | K15: 71.91 | L15: 10 | O15: =ROUND((G15+I15)/2-K15,2) -> 0
A16: 14 | B16: 潘小琴 | C16: 2325021035B51 | D16: 镇远县 | E16: 小学 | F16: 音乐 | G16: 60 | H16: 50% | I16: 83.41 | J16: 50% | K16: 71.71 | L16: 11 | O16: =ROUND((G16+I16)/2-K16,2) -> 0
A17: 15 | B17: 谢磊 | C17: 2325021035B50 | D17: 镇远县 | E17: 小学 | F17: 音乐 | G17: 60 | H17: 50% | I17: 78.94 | J17: 50% | K17: 69.47 | L17: 12 | O17: 0
A18: 16 | B18: 王燕 | C18: 2325021035B46 | D18: 镇远县 | E18: 小学 | F18: 音乐 | G18: 66 | H18: 50% | I18: 0 | J18: 50% | K18: 33.00 | L18: 13 | N18: 面试缺考 | O18: 0
A19: 17 | B19: 张震 | C19: 2325021138B32 | D19: 镇远县 | E19: 小学 | F19: 体育 | G19: 70.5 | H19: 50% | I19: 88.67 | J19: 50% | K19: 79.59 | L19: 1 | M19: 是 | O19: 0
A20: 18 | B20: 郑佳颖 | C20: 2325021138B31 | D20: 镇远县 | E20: 小学 | F20: 体育 | G20: 71.5 | H20: 50% | I20: 87.2 | J20: 50% | K20: 79.35 | L20: 2 | M20: 是 | O20: 0
A21: 19 | B21: 田小敏 | C21: 2325021138B30 | D21: 镇远县 | E21: 小学 | F21: 体育 | G21: 72.5 | H21: 50% | I21: 84.5 | J21: 50% | K21: 78.50 | L21: 3 | M21: 是 | O21: 0
A22: 20 | B22: 杨林穆 | C22: 2325021138B34 | D22: 镇远县 | E22: 小学 | F22: 体育 | G22: 68 | H22: 50% | I22: 87.67 | J22: 50% | K22: 77.84 | L22: 4 | M22: 是 | O22: 0
A23: 21 | B23: 金延榜 | C23: 2325021138B38 | D23: 镇远县 | E23: 小学 | F23: 体育 | G23: 65.5 | H23: 50% | I23: 88.92 | J23: 50% | K23: 77.21 | L23: 5 | M23: 是 | O23: 0
A24: 22 | B24: 吴昌杰 | C24: 2325021138B35 | D24: 镇远县 | E24: 小学 | F24: 体育 | G24: 67 | H24: 50% | I24: 84.43 | J24: 50% | K24: 75.72 | L24: 6 | M24: 是 | O24: 0
A25: 23 | B25: 强华 | C25: 2325021138B36 | D25: 镇远县 | E25: 小学 | F25: 体育 | G25: 66 | H25: 50% | I25: 85.09 | J25: 50% | K25: 75.55 | L25: 7 | O25: 0
A26: 24 | B26: 唐仕辉 | C26: 2325021138B37 | D26: 镇远县 | E26: 小学 | F26: 体育 | G26: 66 | H26: 50% | I26: 83.33 | J26: 50% | K26: 74.67 | L26: 8 | O26: 0
A27: 25 | B27: 吴道林 | C27: 2325021138B42 | D27: 镇远县 | E27: 小学 | F27: 体育 | G27: 63.5 | H27: 50% | I27: 85.75 | J27: 50% | K27: 74.63 | L27: 9 | O27: 0
A28: 26 | B28: 夏承学 | C28: 2325021138B39 | D28: 镇远县 | E28: 小学 | F28: 体育 | G28: 65.5 | H28: 50% | I28: 82.92 | J28: 50% | K28: 74.21 | L28: 10 | O28: 0
A29: 27 | B29: 王玉基 | C29: 2325021138B43 | D29: 镇远县 | E29: 小学 | F29: 体育 | G29: 63.5 | H29: 50% | I29: 84.5 | J29: 50% | K29: 74.00 | L29: 11 | O29: 0
A30: 28 | B30: 吴昌英 | C30: 2325021138B46 | D30: 镇远县 | E30: 小学 | F30: 体育 | G30: 62 | H30: 50% | I30: 85.25 | J30: 50% | K30: 73.63 | L30: 12 | O30: 0
A31: 29 | B31: 邹元军 | C31: 2325021138B40 | D31: 镇远县 | E31: 小学 | F31: 体育 | G31: 65 | H31: 50% | I31: 81.93 | J31: 50% | K31: 73.47 | L31: 13 | O31: 0
A32: 30 | B32: 谭淋 | C32: 2325021138B44 | D32: 镇远县 | E32: 小学 | F32: 体育 | G32: 62.5 | H32: 50% | I32: 84.19 | J32: 50% | K32: 73.35 | L32: 14 | O32: 0
A33: 31 | B33: 杨毅 | C33: 2325021138B45 | D33: 镇远县 | E33: 小学 | F33: 体育 | G33: 62 | H33: 50% | I33: 84.17 | J33: 50% | K33: 73.09 | L33: 15 | O33: 0
A34: 32 | B34: 杨伟伟 | C34: 2325021138B47 | D34: 镇远县 | E34: 小学 | F34: 体育 | G34: 61.5 | H34: 50% | I34: 83.97 | J34: 50% | K34: 72.74 | L34: 16 | O34: 0
A35: 33 | B35: 赵室吕 | C35: 2325021138B41 | D35: 镇远县 | E35: 小学 | F35: 体育 | G35: 64.5 | H35: 50% | I35: 80.67 | J35: 50% | K35: =G35*H35+I35*J35 -> 72.59 | L35: 17 | O35: 0
A36: 34 | B36: 杨昌村 | C36: 2325021138B33 | D36: 镇远县 | E36: 小学 | F36: 体育 | G36: 69 | H36: 50% | I36: 0 | J36: 50% | K36: 34.50 | L36: 18 | N36: 面试缺考 | O36: 0
A37: 35 | B37: 王晓琴 | C37: 2325021241A01 | D37: 镇远县 | E37: 小学 | F37: 美术 | G37: 81 | H37: 50% | I37: 91.83 | J37: 50% | K37: 86.42 | L37: 1 | M37: 是 | O37: 0
A38: 36 | B38: 王茜 | C38: 2325021241A03 | D38: 镇远县 | E38: 小学 | F38: 美术 | G38: 77.5 | H38: 50% | I38: 92.55 | J38: 50% | K38: 85.03 | L38: 2 | M38: 是 | O38: 0
A39: 37 | B39: 阳佳丽 | C39: 2325021241A02 | D39: 镇远县 | E39: 小学 | F39: 美术 | G39: 77.5 | H39: 50% | I39: 89.74 | J39: 50% | K39: 83.62 | L39: 3 | M39: 是 | O39: 0
A40: 38 | B40: 王培 | C40: 2325021241A06 | D40: 镇远县 | E40: 小学 | F40: 美术 | G40: 75.5 | H40: 50% | I40: 90.78 | J40: 50% | K40: 83.14 | L40: 4 | M40: 是 | O40: 0
A41: 39 | B41: 黎玲 | C41: 2325021241A07 | D41: 镇远县 | E41: 小学 | F41: 美术 | G41: 75 | H41: 50% | I41: 90.78 | J41: 50% | K41: 82.89 | L41: 5 | O41: 0
A42: 40 | B42: 吴林 | C42: 2325021241A04 | D42: 镇远县 | E42: 小学 | F42: 美术 | G42: 76 | H42: 50% | I42: 89.72 | J42: 50% | K42: 82.86 | L42: 6 | O42: 0
A43: 41 | B43: 杜方玉 | C43: 2325021241A10 | D43: 镇远县 | E43: 小学 | F43: 美术 | G43: 73.5 | H43: 50% | I43: 91.48 | J43: 50% | K43: 82.49 | L43: 7 | O43: 0
A44: 42 | B44: 田小芳 | C44: 2325021241A08 | D44: 镇远县 | E44: 小学 | F44: 美术 | G44: 75 | H44: 50% | I44: 89.8 | J44: 50% | K44: 82.40 | L44: 8 | O44: 0
A45: 43 | B45: 陈静 | C45: 2325021241A11 | D45: 镇远县 | E45: 小学 | F45: 美术 | G45: 72.5 | H45: 50% | I45: 91.6 | J45: 50% | K45: 82.05 | L45: 9 | O45: 0
A46: 44 | B46: 潘宇 | C46: 2325021241A09 | D46: 镇远县 | E46: 小学 | F46: 美术 | G46: 74 | H46: 50% | I46: 89.76 | J46: 50% | K46: 81.88 | L46: 10 | O46: 0
A47: 45 | B47: 杨霜 | C47: 2325021241A12 | D47: 镇远县 | E47: 小学 | F47: 美术 | G47: 72.5 | H47: 50% | I47: 88.58 | J47: 50% | K47: 80.54 | L47: 11 | O47: 0
A48: 46 | B48: 陈虹 | C48: 2325021241A05 | D48: 镇远县 | E48: 小学 | F48: 美术 | G48: 76 | H48: 50% | I48: 0 | J48: 50% | K48: 38.00 | L48: 12 | N48: 面试缺考 | O48: 0
A49: 47 | B49: 黄娅婷 | C49: 2325030109A14 | D49: 镇远县 | E49: 初中 | F49: 语文 | G49: 75.5 | H49: 50% | I49: 86.33 | J49: 50% | K49: 80.92 | L49: 1 | M49: 是 | O49: 0
A50: 48 | B50: 齐成敏 | C50: 2325030109A16 | D50: 镇远县 | E50: 初中 | F50: 语文 | G50: 73.5 | H50: 50% | I50: 87.67 | J50: 50% | K50: 80.59 | L50: 2 | M50: 是 | O50: 0
A51: 49 | B51: 李昌兰 | C51: 2325030109A11 | D51: 镇远县 | E51: 初中 | F51: 语文 | G51: 77.5 | H51: 50% | I51: 82.33 | J51: 50% | K51: 79.92 | L51: 3 | M51: 是 | O51: 0
A52: 50 | B52: 姜慧 | C52: 2325030109A12 | D52: 镇远县 | E52: 初中 | F52: 语文 | G52: 77 | H52: 50% | I52: 81.67 | J52: 50% | K52: 79.34 | L52: 4 | M52: 是 | O52: 0
A53: 51 | B53: 彭国红 | C53: 2325030109A15 | D53: 镇远县 | E53: 初中 | F53: 语文 | G53: 73.5 | H53: 50% | I53: 83.33 | J53: 50% | K53: 78.42 | L53: 5 | M53: 是 | O53: 0
A54: 52 | B54: 丁娜 | C54: 2325030109A13 | D54: 镇远县 | E54: 初中 | F54: 语文 | G54: 76 | H54: 50% | I54: 79.33 | J54: 50% | K54: 77.67 | L54: 6 | M54: 是 | O54: 0
A55: 53 | B55: 杨通芬 | C55: 2325030109A17 | D55: 镇远县 | E55: 初中 | F55: 语文 | G55: 72.5 | H55: 50% | I55: 82.67 | J55: 50% | K55: 77.59 | L55: 7 | O55: 0
A56: 54 | B56: 刘欢 | C56: 2325030109A20 | D56: 镇远县 | E56: 初中 | F56: 语文 | G56: 70 | H56: 50% | I56: 85 | J56: 50% | K56: 77.50 | L56: 8 | O56: 0
A57: 55 | B57: 刘睿 | C57: 2325030109A23 | D57: 镇远县 | E57: 初中 | F57: 语文 | G57: 68.5 | H57: 50% | I57: 86.33 | J57: 50% | K57: 77.42 | L57: 9 | O57: 0
A58: 56 | B58: 杨鑫 | C58: 2325030109A18 | D58: 镇远县 | E58: 初中 | F58: 语文 | G58: 71 | H58: 50% | I58: 82 | J58: 50% | K58: 76.50 | L58: 10 | O58: 0
A59: 57 | B59: 陈琴 | C59: 2325030109A24 | D59: 镇远县 | E59: 初中 | F59: 语文 | G59: 68 | H59: 50% | I59: 84.67 | J59: 50% | K59: 76.34 | L59: 11 | O59: 0
A60: 58 | B60: 王智 | C60: 2325030109A19 | D60: 镇远县 | E60: 初中 | F60: 语文 | G60: 70.5 | H60: 50% | I60: 81.33 | J60: 50% | K60: 75.92 | L60: 12 | O60: 0
A61: 59 | B61: 杨胜梅 | C61: 2325030109A26 | D61: 镇远县 | E61: 初中 | F61: 语文 | G61: 67.5 | H61: 50% | I61: 82.67 | J61: 50% | K61: 75.09 | L61: 13 | O61: 0
A62: 60 | B62: 龙英 | C62: 2325030109A25 | D62: 镇远县 | E62: 初中 | F62: 语文 | G62: 68 | H62: 50% | I62: 81.67 | J62: 50% | K62: 74.84 | L62: 14 | O62: 0
A63: 61 | B63: 杨茗惠 | C63: 2325030109A21 | D63: 镇远县 | E63: 初中 | F63: 语文 | G63: 69.5 | H63: 50% | I63: 80 | J63: 50% | K63: 74.75 | L63: 15 | O63: 0
A64: 62 | B64: 李阳 | C64: 2325030109A22 | D64: 镇远县 | E64: 初中 | F64: 语文 | G64: 69 | H64: 50% | I64: 80.33 | J64: 50% | K64: 74.67 | L64: 16 | O64: 0
A65: 63 | B65: 夏林敏 | C65: 2325030109A29 | D65: 镇远县 | E65: 初中 | F65: 语文 | G65: 66.5 | H65: 50% | I65: 78.67 | J65: 50% | K65: 72.59 | L65: 17 | O65: 0
A66: 64 | B66: 夏顶燕 | C66: 2325030109A27 | D66: 镇远县 | E66: 初中 | F66: 语文 | G66: 67 | H66: 50% | I66: 73.67 | J66: 50% | K66: 70.34 | L66: 18 | O66: 0
A67: 65 | B67: 张晓倩 | C67: 2325030109A28 | D67: 镇远县 | E67: 初中 | F67: 语文 | G67: 66.5 | H67: 50% | I67: 0 | J67: 50% | K67: =G67*H67+I67*J67 -> 33.25 | L67: 19 | N67: 面试缺考 | O67: 0
A68: 66 | B68: 彭银雪 | C68: 2325030216A22 | D68: 镇远县 | E68: 初中 | F68: 数学 | G68: 94.5 | H68: 50% | I68: 86.68 | J68: 50% | K68: 90.59 | L68: 1 | M68: 是 | O68: 0
A69: 67 | B69: 徐大虾 | C69: 2325030216A23 | D69: 镇远县 | E69: 初中 | F69: 数学 | G69: 90.5 | H69: 50% | I69: 87.43 | J69: 50% | K69: 88.97 | L69: 2 | M69: 是 | O69: 0
A70: 68 | B70: 罗媛 | C70: 2325030216A25 | D70: 镇远县 | E70: 初中 | F70: 数学 | G70: 81.5 | H70: 50% | I70: 83.13 | J70: 50% | K70: 82.32 | L70: 3 | M70: 是 | O70: 0
A71: 69 | B71: 欧耀骏 | C71: 2325030216A24 | D71: 镇远县 | E71: 初中 | F71: 数学 | G71: 83 | H71: 50% | I71: 79.78 | J71: 50% | K71: 81.39 | L71: 4 | O71: 0
A72: 70 | B72: 尚小双 | C72: 2325030216A27 | D72: 镇远县 | E72: 初中 | F72: 数学 | G72: 73 | H72: 50% | I72: 88.79 | J72: 50% | K72: 80.90 | L72: 5 | O72: 0
A73: 71 | B73: 杨明芝 | C73: 2325030216A26 | D73: 镇远县 | E73: 初中 | F73: 数学 | G73: 74 | H73: 50% | I73: 83.73 | J73: 50% | K73: 78.87 | L73: 6 | O73: 0
A74: 72 | B74: 毛辽 | C74: 2325030216A28 | D74: 镇远县 | E74: 初中 | F74: 数学 | G74: 65 | H74: 50% | I74: 79.03 | J74: 50% | K74: 72.02 | L74: 7 | O74: 0
A75: 73 | B75: 杨攀 | C75: 2325030216A29 | D75: 镇远县 | E75: 初中 | F75: 数学 | G75: 60.5 | H75: 50% | I75: 0 | J75: 50% | K75: =G75*H75+I75*J75 -> 30.25 | L75: 8 | N75: 面试缺考 | O75: 0
A76: 74 | B76: 杨庭彪 | C76: 2325030216A30 | D76: 镇远县 | E76: 初中 | F76: 数学 | G76: 51.5 | H76: 50% | I76: 0 | J76: 50% | K76: 25.75 | L76: 9 | N76: 面试缺考 | O76: 0
A77: 75 | B77: 夏康源 | C77: 2325030324A23 | D77: 镇远县 | E77: 初中 | F77: 英语 | G77: 70.5 | H77: 50% | I77: 86.9 | J77: 50% | K77: =G77*H77+I77*J77 -> 78.70 | L77: 1 | M77: 是 | O77: 0
A78: 76 | B78: 黎雪 | C78: 2325030324A22 | D78: 镇远县 | E78: 初中 | F78: 英语 | G78: 72 | H78: 50% | I78: 85.01 | J78: 50% | K78: 78.51 | L78: 2 | M78: 是 | O78: 0
A79: 77 | B79: 施丽 | C79: 2325030324A25 | D79: 镇远县 | E79: 初中 | F79: 英语 | G79: 65 | H79: 50% | I79: 88.83 | J79: 50% | K79: 76.92 | L79: 3 | O79: 0
A80: 78 | B80: 高丽 | C80: 2325030324A24 | D80: 镇远县 | E80: 初中 | F80: 英语 | G80: 66.5 | H80: 50% | I80: 85.35 | J80: 50% | K80: 75.93 | L80: 4 | O80: =ROUND((G80+I80)/2-K80,2) -> 0
A81: 79 | B81: 彭雲娟 | C81: 2325030324A26 | D81: 镇远县 | E81: 初中 | F81: 英语 | G81: 63.5 | H81: 50% | I81: 80.67 | J81: 50% | K81: 72.09 | L81: 5 | O81: 0
A82: 80 | B82: 徐凤 | C82: 2325030324A27 | D82: 镇远县 | E82: 初中 | F82: 英语 | G82: 63 | H82: 50% | I82: 75.83 | J82: 50% | K82: 69.42 | L82: 6 | O82: 0
A83: 81 | B83: 周斌 | C83: 2325030425B38 | D83: 镇远县 | E83: 初中 | F83: 物理 | G83: 63 | H83: 50% | I83: 82.07 | J83: 50% | K83: 72.54 | L83: 1 | M83: 是 | O83: 0
A84: 82 | B84: 龙燕 | C84: 2325030425B39 | D84: 镇远县 | E84: 初中 | F84: 物理 | G84: 62 | H84: 50% | I84: 81.4 | J84: 50% | K84: 71.70 | L84: 2 | O84: 0
A85: 83 | B85: 吴爱军 | C85: 2325030425B40 | D85: 镇远县 | E85: 初中 | F85: 物理 | G85: 52 | H85: 50% | I85: 0 | J85: 50% | K85: 26.00 | L85: 3 | N85: 面试缺考 | O85: 0
A86: 84 | B86: 王敏 | C86: 2325030627A04 | D86: 镇远县 | E86: 初中 | F86: 生物 | G86: 62.5 | H86: 50% | I86: 86.83 | J86: 50% | K86: =G86*H86+I86*J86 -> 74.67 | L86: 1 | M86: 是 | O86: 0
A87: 85 | B87: 吴涛 | C87: 2325030627A06 | D87: 镇远县 | E87: 初中 | F87: 生物 | G87: 58 | H87: 50% | I87: 86.97 | J87: 50% | K87: 72.49 | L87: 2 | M87: 是 | O87: 0
A88: 86 | B88: 朱孝蓉 | C88: 2325030627A05 | D88: 镇远县 | E88: 初中 | F88: 生物 | G88: 58.5 | H88: 50% | I88: 86.03 | J88: 50% | K88: 72.27 | L88: 3 | O88: 0
A89: 87 | B89: 邓水仙 | C89: 2325030627A07 | D89: 镇远县 | E89: 初中 | F89: 生物 | G89: 57.5 | H89: 50% | I89: 85.17 | J89: 50% | K89: =G89*H89+I89*J89 -> 71.34 | L89: 4 | O89: 0
A90: 88 | B90: 杨武满 | C90: 2325030627A09 | D90: 镇远县 | E90: 初中 | F90: 生物 | G90: 55.5 | H90: 50% | I90: 83.17 | J90: 50% | K90: 69.34 | L90: 5 | O90: 0
A91: 89 | B91: 龙春锾 | C91: 2325030627A08 | D91: 镇远县 | E91: 初中 | F91: 生物 | G91: 56 | H91: 50% | I91: 77.83 | J91: 50% | K91: 66.92 | L91: 6 | O91: 0
A92: 90 | B92: 杨胜英 | C92: 2325030728A08 | D92: 镇远县 | E92: 初中 | F92: 地理 | G92: 72 | H92: 50% | I92: 87 | J92: 50% | K92: 79.50 | L92: 1 | M92: 是 | O92: =ROUND((G93+I93)/2-K93,2) -> 0
A93: 91 | B93: 吴燕 | C93: 2325030728A09 | D93: 镇远县 | E93: 初中 | F93: 地理 | G93: 70.5 | H93: 50% | I93: 88 | J93: 50% | K93: 79.25 | L93: 2 | O93: =ROUND((G94+I94)/2-K94,2) -> 0
A94: 92 | B94: 龙福婷 | C94: 2325030728A07 | D94: 镇远县 | E94: 初中 | F94: 地理 | G94: 72.5 | H94: 50% | I94: 85.33 | J94: 50% | K94: 78.92 | L94: 3 | O94: 0
A95: 93 | B95: 唐星 | C95: 2325030829A01 | D95: 镇远县 | E95: 初中 | F95: 历史 | G95: 77 | H95: 50% | I95: 81.53 | J95: 50% | K95: 79.27 | L95: 1 | M95: 是 | O95: 0
A96: 94 | B96: 杨梅 | C96: 2325030829A02 | D96: 镇远县 | E96: 初中 | F96: 历史 | G96: 65 | H96: 50% | I96: 78.2 | J96: 50% | K96: 71.60 | L96: 2 | O96: 0
A97: 95 | B97: 龙红花 | C97: 2325030829A03 | D97: 镇远县 | E97: 初中 | F97: 历史 | G97: 60 | H97: 50% | I97: 77.34 | J97: 50% | K97: 68.67 | L97: 3 | O97: 0
A98: 96 | B98: 杨土英 | C98: 2325030932A23 | D98: 镇远县 | E98: 初中 | F98: 道德与法治 | G98: 79 | H98: 50% | I98: 83.3 | J98: 50% | K98: =G98*H98+I98*J98 -> 81.15 | L98: 1 | M98: 是 | O98: 0
A99: 97 | B99: 高燕 | C99: 2325030932A24 | D99: 镇远县 | E99: 初中 | F99: 道德与法治 | G99: 74.5 | H99: 50% | I99: 87.67 | J99: 50% | K99: =G99*H99+I99*J99 -> 81.09 | L99: 2 | M99: 是 | O99: 0
A100: 98 | B100: 邰水晶 | C100: 2325030932A25 | D100: 镇远县 | E100: 初中 | F100: 道德与法治 | G100: 72 | H100: 50% | I100: 90 | J100: 50% | K100: =G100*H100+I100*J100 -> 81.00 | L100: 3 | O100: 0
A101: 99 | B101: 潘小菊 | C101: 2325030932A26 | D101: 镇远县 | E101: 初中 | F101: 道德与法治 | G101: 70 | H101: 50% | I101: 89.33 | J101: 50% | K101: =G101*H101+I101*J101 -> 79.67 | L101: 4 | O101: 0
A102: 100 | B102: 杨轩慧 | C102: 2325030932A27 | D102: 镇远县 | E102: 初中 | F102: 道德与法治 | G102: 68 | H102: 50% | I102: 85.67 | J102: 50% | K102: =G102*H102+I102*J102 -> 76.84 | L102: 5 | O102: 0
A103: 101 | B103: 谭贵花 | C103: 2325030932A28 | D103: 镇远县 | E103: 初中 | F103: 道德与法治 | G103: 67 | H103: 50% | I103: 0 | J103: 50% | K103: =G103*H103+I103*J103 -> 33.50 | L103: 6 | N103: 面试缺考 | O103: 0
A104: 102 | B104: 罗丹 | C104: 2325031037A01 | D104: 镇远县 | E104: 初中 | F104: 音乐 | G104: 79 | H104: 50% | I104: 82.54 | J104: 50% | K104: 80.77 | L104: 1 | M104: 是 | O104: 0
A105: 103 | B105: 姜燕 | C105: 2325031037A02 | D105: 镇远县 | E105: 初中 | F105: 音乐 | G105: 71.5 | H105: 50% | I105: 83.78 | J105: 50% | K105: 77.64 | L105: 2 | O105: 0
A106: 104 | B106: 赵麟 | C106: 2325031037A03 | D106: 镇远县 | E106: 初中 | F106: 音乐 | G106: 63 | H106: 50% | I106: 79.01 | J106: 50% | K106: 71.01 | L106: 3 | O106: 0
A107: 105 | B107: 李勇 | C107: 2325031140A10 | D107: 镇远县 | E107: 初中 | F107: 体育 | G107: 70 | H107: 50% | I107: 80.29 | J107: 50% | K107: =G107*H107+I107*J107 -> 75.15 | L107: 1 | M107: 是 | O107: 0
A108: 106 | B108: 杨世成 | C108: 2325031140A11 | D108: 镇远县 | E108: 初中 | F108: 体育 | G108: 63.5 | H108: 50% | I108: 86.02 | J108: 50% | K108: =G108*H108+I108*J108 -> 74.76 | L108: 2 | M108: 是 | O108: 0
A109: 107 | B109: 熊娇娇 | C109: 2325031140A12 | D109: 镇远县 | E109: 初中 | F109: 体育 | G109: 63 | H109: 50% | I109: 85.64 | J109: 50% | K109: =G109*H109+I109*J109 -> 74.32 | L109: 3 | O109: 0
A110: 108 | B110: 刘运成 | C110: 2325031140A13 | D110: 镇远县 | E110: 初中 | F110: 体育 | G110: 62.5 | H110: 50% | I110: 84.79 | J110: 50% | K110: =G110*H110+I110*J110 -> 73.65 | L110: 4 | O110: 0
A111: 109 | B111: 龚代飞 | C111: 2325031140A14 | D111: 镇远县 | E111: 初中 | F111: 体育 | G111: 61.5 | H111: 50% | I111: 84.23 | J111: 50% | K111: =G111*H111+I111*J111 -> 72.87 | L111: 5 | O111: 0
A112: 110 | B112: 覃启龙 | C112: 2325031140A15 | D112: 镇远县 | E112: 初中 | F112: 体育 | G112: 61.5 | H112: 50% | I112: 0 | J112: 50% | K112: 30.75 | L112: 6 | N112: 面试缺考 | O112: 0
A113: 111 | B113: 杨杰 | C113: 2325031345A01 | D113: 镇远县 | E113: 初中 | F113: 信息科技 | G113: 80.5 | H113: 50% | I113: 90.33 | J113: 50% | K113: 85.42 | L113: 1 | M113: 是 | O113: 0
A114: 112 | B114: 杨武姮 | C114: 2325031345A02 | D114: 镇远县 | E114: 初中 | F114: 信息科技 | G114: 77.5 | H114: 50% | I114: 84 | J114: 50% | K114: 80.75 | L114: 2 | O114: 0
A115: 113 | B115: 王梦霞 | C115: 2325031345A03 | D115: 镇远县 | E115: 初中 | F115: 信息科技 | G115: 64 | H115: 50% | I115: 0 | J115: 50% | K115: 32.00 | L115: 3 | N115: 面试缺考 | O115: 0
